bitfinex-derivatives/quotes_ETHF0:USTF0_20240817
["timestamp","ask_amount","ask_price","bid_price","bid_amount"]
[1723914404970,0.369,2625.8,2625.4,1.42812]
[1723914404971,1.4281,2625.5,2625.4,1.42812]
[1723914406665,1.42808,2625.6,2625.5,1.42809]
[1723914406869,1.42811,2625.5,2625.4,1.42813]
[1723914407073,1.42809,2625.6,2625.4,1.42813]
[1723914407266,1.4281,2625.5,2625.4,1.42813]
[1723914408279,1.42807,2625.6,2625.5,1.42808]
[1723914408583,1.42803,2625.7,2625.6,1.42804]
[1723914408880,1.42803,2625.7,2625.5,1.42806]
[1723914409081,0.369,2625.8,2625.6,1.42803]
[1723914409272,0.369,2625.8,2625.3,1.35079445]
[1723914409273,0.369,2625.8,2625.7,1.42799]
[1723914409471,1.42797,2625.8,2625.6,1.42802]
[1723914409675,1.42797,2625.8,2625.7,1.42799]
[1723914409974,1.42799,2625.7,2625.6,1.42802]
[1723914410181,0.35351865,2626.0,2625.6,1.42802]
[1723914410182,1.42797,2625.8,2625.6,1.42802]
[1723914410574,1.42795,2625.8,2625.4,0.98859445]
[1723914410779,1.42795,2625.8,2625.6,1.42801]
[1723914410983,0.35351865,2626.0,2625.5,3.2078]
[1723914410984,1.42804,2625.6,2625.5,3.2078]
[1723914411186,1.42802,2625.7,2625.5,4.63588]
[1723914411380,1.42804,2625.6,2625.5,4.63588]
[1723914411775,1.42802,2625.7,2625.5,4.63588]
[1723914412684,1.42797,2625.8,2625.6,1.42804]
[1723914413581,1.78137865,2626.0,2625.5,3.2078]
[1723914413774,1.42803,2625.7,2625.5,4.6359]
[1723914414389,1.42804,2625.6,2625.5,4.6359]
[1723914415386,1.42801,2625.7,2625.6,1.42804]
[1723914415688,1.42801,2625.7,2625.5,4.63587]
[1723914416074,1.42804,2625.6,2625.5,3.2078]
[1723914417177,1.42804,2625.6,2625.5,4.6359]
[1723914417581,1.42804,2625.6,2625.5,1.4281]
[1723914418086,0.35351865,2626.0,2625.5,13.39501787]
[1723914418386,0.35351865,2626.0,2625.9,1.42788]
[1723914419383,0.00961865,2626.0,2625.9,1.42788]
[1723914423282,0.00961865,2626.0,2625.8,0.7315]
[1723914424188,0.00961865,2626.0,2625.9,1.42788]
[1723914425681,0.00961865,2626.0,2625.9,2.41647445]
[1723914425987,0.00047597,2626.0,2625.9,10.28535445]
[1723914426197,6.941,2626.7,2625.9,10.28535445]
[1723914426198,0.3591,2626.7,2626.0,1.4278]
[1723914426384,0.3591,2626.7,2626.3,3.2078]
[1723914426689,0.3591,2626.7,2626.6,1.4275]
[1723914427282,4.17032771,2626.7,2626.4,0.7316]
[1723914427584,0.36312771,2626.7,2626.6,1.4275]
[1723914427985,4.17032771,2626.7,2626.5,1.42752]
[1723914428188,0.36312771,2626.7,2626.5,1.42752]
[1723914428894,0.36312771,2626.7,2626.6,1.4275]
[1723914429091,4.17032771,2626.7,2626.6,1.4275]
[1723914429290,0.00402771,2626.7,2626.6,1.4275]
[1723914429491,0.0057157,2626.8,2626.7,1.42745]
[1723914429681,0.0057157,2626.8,2626.7,1.78145]
[1723914429885,0.0057157,2626.8,2626.7,9.66134526]
[1723914430590,0.00920265,2626.8,2626.7,9.66422836]
[1723914432595,0.00920265,2626.8,2626.7,9.31022836]
[1723914433795,4.6348,2627.6,2626.7,18.11742836]
[1723914433997,2.15298,2627.8,2627.6,1.42695]
[1723914434793,2.15298,2627.8,2627.3,3.2078]
[1723914434794,0.00451997,2627.8,2627.7,1.78337]
[1723914435497,0.00451997,2627.8,2627.7,0.3565]
[1723914435793,0.00451997,2627.8,2627.7,1.7834]
[1723914436001,0.00451997,2627.8,2627.7,0.3565]
[1723914436697,1.42701,2627.5,2627.4,0.0057157]
[1723914436889,1.42695,2627.7,2627.4,1.4327457]
[1723914437396,0.35271997,2627.8,2627.4,0.0057157]
[1723914437397,1.42699,2627.6,2627.4,0.0057157]
[1723914437785,1.77959997,2627.8,2627.4,0.0057157]
[1723914437990,1.427,2627.6,2627.4,0.0057157]
[1723914438393,1.42701,2627.5,2627.4,0.0057157]
[1723914440195,6.65962,2627.5,2627.4,0.0057157]
[1723914441101,11.65962,2627.5,2627.4,0.0057157]
[1723914442799,10.23261,2627.5,2627.4,0.0057157]
[1723914443097,11.65962,2627.5,2627.4,0.0057157]
[1723914446905,10.23261,2627.5,2627.4,0.0057157]
[1723914447102,5.23261,2627.5,2627.4,0.0057157]
[1723914447499,6.65962,2627.5,2627.4,0.0057157]
[1723914448009,1.42701,2627.5,2627.4,0.0057157]
[1723914448506,2.85402,2627.5,2627.4,0.0057157]
[1723914448905,1.42701,2627.5,2627.4,0.0057157]
[1723914449110,1.427,2627.6,2627.4,0.0057157]
[1723914449712,1.42694,2627.7,2627.4,1.4327757]
[1723914449909,0.00451997,2627.8,2627.5,0.7131]
[1723914450115,1.42696,2627.6,2627.5,0.3651]
[1723914450319,0.00451997,2627.8,2627.4,0.0057157]
[1723914450612,1.42698,2627.6,2627.4,0.0057157]
[1723914450807,0.00451997,2627.8,2627.4,0.0057157]
[1723914450808,1.42701,2627.5,2627.4,0.0057157]
[1723914451016,2.85402,2627.5,2627.4,0.0057157]
[1723914451313,6.65962,2627.5,2627.4,0.0057157]
[1723914452917,6.65962,2627.5,2627.0,3.9209]
[1723914452918,1.42723,2627.1,2627.0,3.2078]
[1723914453325,5.23363,2627.1,2627.0,3.2078]
[1723914454031,3.8064,2627.1,2627.0,3.2078]
[1723914454228,5.23363,2627.1,2627.0,3.2078]
[1723914454531,1.42723,2627.1,2627.0,3.2078]
[1723914454731,1.42728,2627.0,2626.9,0.3591]
[1723914454937,1.42734,2626.9,2626.8,0.0057157]
[1723914455123,5.95444,2626.9,2626.2,0.3589]
[1723914455318,1.42766,2626.3,2626.2,0.3589]
[1723914455626,1.42764,2626.4,2626.2,0.3589]
[1723914456026,1.42764,2626.4,2626.2,0.36256709]
[1723914456722,1.42766,2626.3,2626.2,0.36256709]
[1723914458038,1.42766,2626.3,2626.2,0.00366709]
[1723914459635,6.66332,2626.3,2626.2,0.00366709]
[1723914459834,1.42777,2626.1,2626.0,0.0057157]
[1723914460834,1.42777,2626.1,2626.0,0.00939772]
[1723914462429,2.85554,2626.1,2626.0,0.00939772]
[1723914464130,6.66354,2626.1,2626.0,0.00939772]
[1723914464430,1.42784,2626.0,2624.8,3.51487382]
[1723914464731,1.42819,2625.4,2625.0,2.50325]
[1723914465238,1.43263263,2625.4,2625.0,2.50686452]
[1723914466335,1.42822,2625.3,2625.0,1.07851452]
[1723914466532,1.42832,2625.1,2625.0,1.07851452]
[1723914466731,0.00444263,2625.4,2625.0,1.07851452]
[1723914466933,1.42832,2625.1,2625.0,1.07851452]
[1723914467435,1.42829,2625.2,2625.0,1.07851452]
[1723914467626,0.00444263,2625.4,2625.0,1.07851452]
[1723914467825,1.43263263,2625.4,2625.1,1.42829]
[1723914468129,1.42832,2625.1,2625.0,0.00361452]
[1723914468339,2.85664,2625.1,2625.0,0.00361452]
[1723914469624,1.42832,2625.1,2625.0,0.00361452]
[1723914470340,0.3554,2625.3,2625.0,0.00361452]
[1723914470341,1.42829,2625.2,2625.0,0.00361452]
[1723914471038,1.42832,2625.1,2625.0,0.00361452]
[1723914477740,3.21224263,2625.4,2625.0,0.00361452]
[1723914477946,0.00444263,2625.4,2625.0,1.43197452]
[1723914478243,1.43264263,2625.4,2625.0,1.43197452]
[1723914478549,1.42828,2625.2,2625.0,0.00361452]
[1723914479035,1.42824,2625.3,2625.0,5.24158452]
[1723914479235,1.43263263,2625.4,2625.0,1.43198452]
[1723914479647,1.43263263,2625.4,2625.1,1.42831]
[1723914479846,0.00444263,2625.4,2625.2,0.7256]
[1723914480036,1.43262263,2625.4,2625.3,0.351]
[1723914482837,1.42821,2625.3,2625.2,0.3773]
[1723914483143,2.85642,2625.3,2625.2,0.3773]
[1723914483739,1.42832,2625.1,2625.0,0.00361452]
[1723914485946,0.36024263,2625.4,2625.0,0.00361452]
[1723914485947,1.4283,2625.2,2625.0,3.81321452]
[1723914486143,1.42832,2625.1,2625.0,0.00361452]
[1723914486648,1.42832,2625.1,2625.0,3.81321452]
[1723914486948,1.4283,2625.2,2625.0,3.81321452]
[1723914487135,1.4283,2625.2,2625.0,1.43195452]
[1723914487335,1.42828,2625.2,2625.0,5.24156452]
[1723914487532,1.4283,2625.2,2625.0,1.43198452]
[1723914487938,0.36024263,2625.4,2625.0,3.81321452]
[1723914488135,0.36024263,2625.4,2625.0,1.43194452]
[1723914488351,1.42825,2625.3,2625.1,1.42831]
[1723914488536,1.42826,2625.2,2625.1,1.42831]
[1723914488833,1.42832,2625.1,2625.0,0.00361452]
[1723914489037,1.4283,2625.2,2625.0,0.00361452]
[1723914489744,1.42832,2625.1,2625.0,0.00361452]
[1723914491746,2.85664,2625.1,2625.0,0.00361452]
[1723914491947,3.21564,2625.1,2625.0,0.00361452]
[1723914494254,1.78732,2625.1,2625.0,0.00361452]
[1723914494452,1.42832,2625.1,2625.0,0.00361452]
[1723914498755,6.66624,2625.1,2625.0,0.00361452]
[1723914500348,1.42832,2625.1,2625.0,0.00361452]
[1723914500553,3.2078,2625.2,2625.1,1.42832]
[1723914500948,3.2078,2625.2,2625.1,5.23792]
[1723914501345,0.00444263,2625.4,2625.3,1.42821]
[1723914501550,1.80029,2625.8,2625.7,1.42799]
[1723914501551,0.3723,2625.8,2625.7,1.42799]
[1723914501955,1.4278,2626.1,2625.3,8.2006167]
[1723914502159,1.42799,2625.7,2625.5,1.42806]
[1723914502351,1.42799,2625.7,2625.6,0.3618]
[1723914502659,0.00476031,2625.7,2625.6,1.78984]
[1723914503647,0.00476031,2625.7,2625.6,5.59864]
[1723914507777,0.00476031,2625.7,2625.6,10.59864]
[1723914507959,0.00476031,2625.7,2625.6,11.29514]
[1723914514371,0.00476031,2625.7,2625.6,6.29514]
[1723914514569,0.00476031,2625.7,2625.6,2.14174]
[1723914521569,0.00476031,2625.7,2625.6,1.42804]
[1723914521969,0.35516031,2625.7,2625.6,1.42804]
[1723914522368,1.78315031,2625.7,2625.6,1.42804]
[1723914522575,0.35516031,2625.7,2625.6,1.42804]
[1723914525773,1.78315031,2625.7,2625.6,1.42804]
[1723914526777,0.35516031,2625.7,2625.6,1.42804]
[1723914526980,1.4281,2625.5,2625.4,1.42811]
[1723914527173,1.4281,2625.5,2625.1,0.98341599]
[1723914527174,1.42814,2625.5,2625.1,0.98341599]
[1723914527374,1.42826,2625.2,2625.1,1.42828]
[1723914527577,1.42826,2625.2,2625.0,3.90381452]
[1723914527578,2.85642,2625.3,2625.2,7.90068331]
[1723914527782,1.42832,2625.1,2625.0,3.21141452]
[1723914528580,5.23792,2625.1,2625.0,0.00361452]
[1723914528779,5.61142,2625.1,2625.0,0.00361452]
[1723914528984,1.7736,2625.2,2625.0,1.43198452]
[1723914529175,1.7736,2625.2,2625.1,1.42832]
[1723914529176,0.3453,2625.2,2625.1,1.42832]
[1723914530176,1.77356,2625.2,2625.1,1.42832]
[1723914530675,0.3782,2625.5,2625.3,1.42818]
[1723914530879,0.3782,2625.5,2625.0,0.36461452]
[1723914530880,0.3592,2625.5,2625.0,0.72581452]
[1723914531075,0.00476031,2625.7,2625.1,4.63608]
[1723914531282,1.42804,2625.6,2625.4,1.42811]
[1723914532587,4.64058031,2625.7,2625.2,0.3733]
[1723914532779,1.43278031,2625.7,2625.2,0.3733]
[1723914532983,1.43278031,2625.7,2625.5,1.42807]
[1723914533382,3.8088,2625.6,2625.5,1.42807]
[1723914533584,7.02136031,2625.7,2625.4,1.42815]
[1723914533884,1.42809,2625.6,2625.5,0.76980599]
[1723914534188,1.42809,2625.6,2625.2,0.3733]
[1723914534483,1.68675869,2625.5,2625.2,0.3733]
[1723914534685,0.00476031,2625.7,2625.6,1.42804]
[1723914534889,0.00476031,2625.7,2625.2,1.42822]
[1723914534890,1.42815,2625.5,2625.2,1.42822]
[1723914535076,0.56367772,2625.4,2625.3,1.42821]
[1723914535876,1.42813,2625.5,2625.3,1.42821]
[1723914537385,1.42813,2625.5,2625.4,1.42815]
[1723914538481,0.00476031,2625.7,2625.4,1.42811]
[1723914538482,1.42809,2625.6,2625.4,1.42811]
[1723914538689,1.42809,2625.6,2625.1,0.7431]
[1723914538994,1.42809,2625.6,2625.4,1.42813]
[1723914539382,1.42813,2625.5,2625.3,1.42817]
[1723914540583,1.4281,2625.5,2625.4,1.42811]
[1723914541188,1.42821,2625.3,2625.2,1.42824]
[1723914541391,0.00476031,2625.7,2625.2,0.33235651]
[1723914541695,1.42815,2625.4,2625.3,1.76056651]
[1723914541894,1.42815,2625.4,2625.3,1.76056542]
[1723914542187,1.42821,2625.3,2625.2,9.55896314]
[1723914542390,1.42819,2625.4,2625.2,1.76059628]
[1723914542584,1.42821,2625.3,2625.2,1.42822]
[1723914542786,1.79321,2625.3,2625.2,1.76060891]
[1723914542985,0.365,2625.3,2625.2,5.56940891]
[1723914544091,1.79321,2625.3,2625.2,6.5528249]
[1723914544395,1.79321,2625.3,2625.2,0.33238891]
[1723914544793,2.17051,2625.3,2625.2,0.33238891]
[1723914545189,2.17051,2625.3,2625.2,1.76064891]
[1723914545390,2.17051,2625.3,2625.2,0.33238891]
[1723914546188,2.17051,2625.3,2625.2,1.3158049]
[1723914547687,2.17051,2625.3,2625.2,0.33238891]
[1723914550996,2.17051,2625.3,2625.2,1.76064891]
[1723914551202,2.17051,2625.3,2625.2,0.33238891]
[1723914551500,2.17051,2625.3,2625.0,4.30841452]
[1723914551501,1.42832,2625.1,2625.0,0.00361452]
[1723914551685,3.95364,2625.1,2625.0,0.33607915]
[1723914551891,7.76324,2625.1,2625.0,0.00361452]
[1723914552288,10.97104,2625.1,2625.0,0.00361452]
[1723914554504,15.97104,2625.1,2625.0,0.00361452]
[1723914554699,1.42837,2625.0,2624.4,0.98341599]
[1723914555004,1.097,2624.7,2624.5,1.42864]
[1723914555403,1.42859,2624.6,2624.4,2.52566]
[1723914555711,1.42864,2624.5,2624.4,0.00365067]
[1723914556202,1.097,2624.7,2624.4,0.00365067]
[1723914556401,1.42862,2624.6,2624.4,1.43234067]
[1723914556601,1.42862,2624.6,2624.4,0.00365067]
[1723914556796,1.42864,2624.5,2624.4,0.00365067]
[1723914557196,2.52564,2624.5,2624.4,0.00365067]
[1723914562707,1.42855,2624.7,2624.5,1.42864]
[1723914562910,1.097,2624.7,2624.6,1.42859]
[1723914565208,2.52553,2624.7,2624.6,1.42859]
[1723914565413,1.097,2624.7,2624.6,1.42859]
[1723914565612,4.9074,2624.7,2624.5,0.3433]
[1723914565914,2.52559,2624.6,2624.5,1.77194]
[1723914566210,2.52559,2624.6,2624.5,0.3433]
[1723914566605,1.42864,2624.5,2624.4,0.00365067]
[1723914569613,1.097,2624.6,2624.5,1.42864]
[1723914569810,1.097,2624.7,2624.6,1.42855]
[1723914570005,2.52553,2624.7,2624.6,1.42855]
[1723914570611,2.52553,2624.7,2624.4,0.00365067]
[1723914570806,2.52553,2624.7,2624.5,1.42861]
[1723914571613,2.52559,2624.6,2624.5,1.42861]
[1723914571914,1.42864,2624.5,2624.4,1.43233067]
[1723914572112,2.52564,2624.5,2624.4,1.43233067]
[1723914572408,2.52564,2624.5,2624.4,0.00365067]
[1723914572816,2.52564,2624.5,2624.4,1.43235067]
[1723914574814,2.52564,2624.5,2624.4,0.00365067]
[1723914575323,7.76468,2624.5,2624.4,0.00365067]
[1723914575701,10.97248,2624.5,2624.4,0.00365067]
[1723914576018,2.8575,2624.3,2624.2,0.0057157]
[1723914576206,3.9545,2624.3,2624.2,0.0057157]
[1723914576411,7.7649,2624.3,2624.2,0.0057157]
[1723914576912,7.7649,2624.3,2624.2,0.00904633]
[1723914578501,1.42906,2623.8,2623.6,4.63692]
[1723914578804,2.87028,2623.7,2623.6,4.63693]
[1723914579006,2.87028,2623.7,2623.6,3.2078]
[1723914579511,2.87499203,2623.7,2623.6,3.21181402]
[1723914580719,1.44591203,2623.7,2623.6,4.64094402]
[1723914580907,1.10171203,2623.7,2623.6,4.64094402]
[1723914581709,1.10171203,2623.7,2623.6,1.43314402]
[1723914584727,0.00471203,2623.7,2623.6,1.43314402]
[1723914585115,0.00471203,2623.7,2623.6,2.53014402]
[1723914585311,0.00471203,2623.7,2623.6,6.34134402]
[1723914587224,0.00471203,2623.7,2623.6,1.43314402]
[1723914587427,0.00471203,2623.7,2623.6,2.53014402]
[1723914588310,0.00471203,2623.7,2623.6,6.34134402]
[1723914588526,0.00471203,2623.7,2623.6,2.53014402]
[1723914590430,1.43379203,2623.7,2623.6,1.43314402]
[1723914590728,0.00471203,2623.7,2623.6,1.43314402]
[1723914590916,6.34199203,2623.7,2623.6,0.00401402]
[1723914591619,0.00471203,2623.7,2623.6,2.53014402]
[1723914593313,0.00471203,2623.7,2623.6,6.34134402]
[1723914594111,0.00471203,2623.7,2623.6,9.54914402]
[1723914594515,0.00471203,2623.7,2623.6,4.64094402]
[1723914594713,0.00471203,2623.7,2623.6,8.45214402]
[1723914595618,0.00471203,2623.7,2623.6,4.64094402]
[1723914597428,4.91291203,2623.7,2623.6,1.76630591]
[1723914597724,4.91291203,2623.7,2623.6,1.43314402]
[1723914598428,1.10171203,2623.7,2623.6,1.43314402]
[1723914598620,2.53079203,2623.7,2623.6,1.43314402]
[1723914598927,1.10171203,2623.7,2623.6,1.43314402]
[1723914599531,2.53079203,2623.7,2623.6,1.43314402]
[1723914601230,2.53079203,2623.7,2623.6,0.00401402]
[1723914602034,1.10171203,2623.7,2623.6,1.43314402]
[1723914602329,0.00471203,2623.7,2623.6,1.43314402]
[1723914602521,0.00471203,2623.7,2623.6,1.76631975]
[1723914602931,2.53079203,2623.7,2623.6,0.00401402]
[1723914607234,1.10171203,2623.7,2623.6,1.43314402]
[1723914608621,2.53079203,2623.7,2623.6,1.43314402]
[1723914609527,1.10171203,2623.7,2623.6,1.43314402]
[1723914610427,0.00471203,2623.7,2623.6,1.43314402]
[1723914610632,0.00471203,2623.7,2623.6,6.34134402]
[1723914610834,0.00471203,2623.7,2623.6,6.67456008]
[1723914612534,0.00471203,2623.7,2623.6,5.57756008]
[1723914614431,0.00471203,2623.7,2623.6,1.76636008]
[1723914615333,1.10171203,2623.7,2623.6,1.76636008]
[1723914616134,0.00471203,2623.7,2623.6,7.65797607]
[1723914616329,0.00471203,2623.7,2623.6,10.00933523]
[1723914616634,0.00471203,2623.7,2623.6,10.60818572]
[1723914616834,1.097,2624.3,2623.7,1.42905]
[1723914617138,1.097,2624.3,2624.2,1.42881]
[1723914617638,1.42872,2624.4,2624.3,1.42875]
[1723914617639,1.097,2624.4,2624.3,1.42875]
[1723914617832,2.53008096,2624.4,2624.3,4.14346649]
[1723914618032,2.53008096,2624.4,2624.3,1.76181649]
[1723914618033,1.10138096,2624.4,2624.3,1.76181649]
[1723914618235,0.00438096,2624.4,2624.3,5.57221649]
[1723914618633,0.00438096,2624.4,2624.3,1.76181649]
[1723914618832,0.00438096,2624.4,2624.3,1.76169071]
[1723914619038,0.00438096,2624.4,2624.3,1.76169223]
[1723914619340,0.00438096,2624.4,2624.3,6.56022609]
[1723914620347,0.00438096,2624.4,2624.3,1.76166362]
[1723914620542,0.00438096,2624.4,2624.3,5.57206362]
[1723914620735,0.00438096,2624.4,2624.3,6.56022609]
[1723914621442,0.00438096,2624.4,2624.3,5.57206362]
[1723914621627,0.00438096,2624.4,2624.3,2.74982609]
[1723914621834,1.10138096,2624.4,2624.3,1.76166362]
[1723914622327,1.10138096,2624.4,2624.3,0.33291362]
[1723914622328,2.53008096,2624.4,2624.3,0.33291362]
[1723914623238,1.42875,2624.3,2624.2,4.6366]
[1723914623436,1.42875,2624.3,2624.2,4.9695953]
[1723914623833,1.42875,2624.3,2624.2,3.5407953]
[1723914624436,1.42875,2624.3,2624.2,4.9696053]
[1723914624645,2.53009096,2624.4,2624.3,1.42875]
[1723914624846,0.00438096,2624.4,2624.3,1.7617453]
[1723914625046,0.00438096,2624.4,2624.3,2.1337453]
[1723914625231,0.00438096,2624.4,2624.3,7.3728953]
[1723914625432,0.00438096,2624.4,2624.3,8.36105777]
[1723914626542,0.00438096,2624.4,2624.3,7.3728953]
[1723914627130,0.00438096,2624.4,2624.3,7.7222953]
[1723914628233,0.00438096,2624.4,2624.3,10.9300953]
[1723914629240,0.00438096,2624.4,2624.3,9.5013453]
[1723914629439,2.53008096,2624.4,2624.3,3.2078]
[1723914630339,2.53008096,2624.4,2624.3,1.42875]
[1723914632135,1.42877,2624.3,2624.2,1.42877]
[1723914632332,1.10138096,2624.4,2624.2,1.42877]
[1723914632535,2.53011096,2624.4,2624.3,1.42875]
[1723914634041,2.53011096,2624.4,2624.2,1.42877]
[1723914634042,1.42877,2624.3,2624.2,1.42877]
[1723914634231,2.53012096,2624.4,2624.3,1.42875]
[1723914634845,1.10138096,2624.4,2624.3,1.42875]
[1723914636743,0.00438096,2624.4,2624.3,3.9545]
[1723914636944,2.53008096,2624.4,2624.3,1.7619259]
[1723914637140,1.10138096,2624.4,2624.3,1.42875]
[1723914638346,0.00438096,2624.4,2624.3,2.8575]
[1723914638645,0.00438096,2624.4,2624.3,8.09819732]
[1723914639452,0.00438096,2624.4,2624.3,7.00119732]
[1723914639750,0.00438096,2624.4,2624.3,7.00121735]
[1723914640750,0.00438096,2624.4,2624.3,5.57246735]
[1723914642655,0.00438096,2624.4,2624.3,5.57248909]
[1723914643044,0.00438096,2624.4,2624.3,7.00123909]
[1723914643556,0.00438096,2624.4,2624.3,8.09823909]
[1723914643851,1.4342357,2624.8,2624.7,2.85706]
[1723914643852,0.0057157,2624.8,2624.7,2.85706]
[1723914644150,0.0057157,2624.8,2624.7,13.39074083]
[1723914644457,0.0057157,2624.8,2624.7,13.05740174]
[1723914644744,0.0093606,2624.8,2624.7,13.39057645]
[1723914644949,1.1063606,2624.8,2624.7,9.58097645]
[1723914645146,1.1063606,2624.8,2624.7,9.24780174]
[1723914645345,2.5348406,2624.8,2624.7,7.81927174]
[1723914645652,1.42853,2624.7,2624.6,3.2078]
[1723914645844,2.52553,2624.7,2624.6,3.2078]
[1723914646352,2.52553,2624.7,2624.6,4.63639]
[1723914646752,2.52553,2624.7,2624.6,1.42859]
[1723914647342,1.097,2624.7,2624.5,2.51841]
[1723914647542,1.097,2624.7,2624.2,0.98662301]
[1723914647747,1.42872,2624.4,2624.2,2.13977]
[1723914647955,0.3574,2624.3,2624.2,2.13977]
[1723914648642,0.3574,2624.3,2624.2,5.95017]
[1723914648947,0.3574,2624.3,2624.2,6.28350602]
[1723914649347,0.3574,2624.3,2624.2,2.47310602]
[1723914649552,0.3574,2624.3,2624.2,6.28350602]
[1723914649852,0.3574,2624.3,2624.2,2.13977]
[1723914652149,0.3574,2624.3,2624.2,2.47309066]
[1723914652350,0.3574,2624.3,2624.2,2.13977]
[1723914653157,0.3574,2624.3,2624.2,2.47307533]
[1723914654666,0.3574,2624.3,2624.2,2.13977]
[1723914654853,0.3574,2624.3,2624.2,2.47307146]
[1723914655054,2.17352,2624.6,2624.5,1.42864]
[1723914655458,2.17352,2624.6,2624.2,0.711]
[1723914655459,2.17352,2624.6,2624.4,1.42866]
[1723914655654,1.42864,2624.5,2624.3,1.42871]
[1723914655853,1.42864,2624.5,2624.3,1.42875]
[1723914656058,1.42864,2624.5,2624.2,0.711]
[1723914656258,1.42864,2624.5,2624.4,1.4287]
[1723914657266,1.42864,2624.5,2624.4,1.76199055]
[1723914657573,1.42864,2624.5,2624.4,1.76198398]
[1723914657767,1.4287,2624.4,2624.2,2.13977]
[1723914657979,1.4287,2624.4,2624.3,1.76204349]
[1723914658785,1.42868,2624.5,2624.3,1.76204349]
[1723914659086,1.42868,2624.5,2624.4,0.33329349]
[1723914659476,5.23908,2624.5,2624.4,0.33329349]
[1723914660782,1.4287,2624.4,2624.3,1.42875]
[1723914660993,2.8574,2624.4,2624.3,0.33315579]
[1723914661284,2.8574,2624.4,2624.2,0.98662301]
[1723914661285,1.42878,2624.3,2624.2,1.4288]
[1723914661473,1.42878,2624.3,2624.2,1.76199507]
[1723914662384,1.42866,2624.5,2624.2,0.33319507]
[1723914662687,4.6365,2624.4,2624.3,0.33319507]
[1723914662881,4.6365,2624.4,2623.9,1.42895]
[1723914662882,1.4289,2624.1,2623.9,1.42895]
[1723914663081,1.42883,2624.2,2624.0,1.76223515]
[1723914663278,1.78336,2624.1,2623.9,2.41555301]
[1723914663589,1.78336,2624.1,2624.0,0.33331135]
[1723914663889,1.78336,2624.1,2624.0,0.33330378]
[1723914665081,0.3545,2624.1,2624.0,0.33330378]
[1723914665278,0.3545,2624.1,2624.0,1.76222378]
[1723914665586,1.78336,2624.1,2624.0,0.33330378]
[1723914666877,1.42881,2624.2,2624.1,1.42884]
[1723914667078,1.42881,2624.2,2624.1,1.42820378]
[1723914667882,2.52681,2624.2,2624.1,1.42820378]
[1723914668081,1.098,2624.2,2624.1,2.85706378]
[1723914668287,1.098,2624.2,2624.1,2.52376]
[1723914668592,1.098,2624.2,2624.1,2.85701609]
[1723914669179,1.098,2624.2,2624.1,6.66741609]
[1723914669383,1.098,2624.2,2624.1,6.66733155]
[1723914670492,1.098,2624.3,2624.2,1.42876]
[1723914670688,1.098,2624.3,2624.2,1.76193155]
[1723914671192,2.52675,2624.3,2624.2,1.76193155]
[1723914671394,2.52675,2624.3,2624.2,0.33317155]
[1723914671576,2.52675,2624.3,2624.2,1.76198155]
[1723914671782,3.9555,2624.3,2624.2,0.33317155]
[1723914672090,14.19465,2624.3,2624.2,0.33317155]
[1723914672293,1.42902,2623.8,2623.7,3.14036301]
[1723914672593,1.42902,2623.8,2623.7,3.47366365]
[1723914673284,2.527,2623.9,2623.7,3.47366365]
[1723914673485,2.527,2623.9,2623.8,0.33330064]
[1723914673981,1.429,2623.9,2623.8,0.33330064]
[1723914675589,1.42897,2623.9,2623.8,0.33330064]
[1723914675795,1.42897,2623.9,2623.8,1.76232064]
[1723914676186,1.42897,2623.9,2623.8,1.42902]
[1723914676393,1.42897,2623.9,2623.8,1.76224153]
[1723914677986,1.42897,2623.9,2623.8,0.33322153]
[1723914679284,8.44797,2623.9,2623.6,0.00401402]
[1723914679498,1.42908,2623.7,2623.6,0.00401402]
[1723914679691,1.42908,2623.7,2623.6,0.3373544]
[1723914679899,5.24028,2623.7,2623.6,0.00401402]
[1723914681094,6.66936,2623.7,2623.6,0.00401402]
[1723914683397,9.87716,2623.7,2623.6,0.00401402]
[1723914688099,6.66936,2623.7,2623.6,0.00401402]
[1723914688302,9.87716,2623.7,2623.6,0.00401402]
[1723914688805,1.42933,2623.3,2622.7,1.42962]
[1723914689001,1.4350457,2623.3,2623.2,0.7147]
[1723914689796,1.4350457,2623.3,2623.2,0.71762737]
[1723914690394,1.4350457,2623.3,2623.2,1.07932737]
[1723914694112,0.0057157,2623.3,2623.2,1.07932737]
[1723914694309,0.0057157,2623.3,2623.2,2.50867737]
[1723914698807,0.0057157,2623.3,2623.2,7.75002737]
[1723914699016,4.088,2623.7,2623.6,1.42913]
[1723914699209,1.098,2623.7,2623.6,1.42911]
[1723914699508,1.098,2623.7,2623.3,4.3058]
[1723914699713,1.098,2623.7,2623.6,1.42913]
[1723914699911,1.7855,2623.9,2623.7,1.42906]
[1723914700104,1.4347157,2623.9,2623.8,1.0588]
[1723914700306,1.7912157,2623.9,2623.8,1.0588]
[1723914701511,2.8892157,2623.9,2623.8,1.0588]
[1723914704611,1.4291,2623.7,2623.5,1.42915]
[1723914704911,2.5271,2623.7,2623.5,1.78115]
[1723914706204,1.42913,2623.6,2623.5,0.352]
[1723914707515,1.42913,2623.6,2623.5,1.78119]
[1723914707816,1.42913,2623.6,2623.5,0.352]
[1723914708214,1.42913,2623.6,2623.4,1.4349357]
[1723914708419,2.90229,2623.5,2623.4,0.0057157]
[1723914708610,4.33148,2623.5,2623.4,0.0057157]
[1723914708913,8.24688,2623.5,2623.4,0.0057157]
[1723914709521,2.8586,2623.3,2623.2,0.00292737]
[1723914709820,3.9566,2623.3,2623.2,0.00292737]
[1723914710018,7.7686,2623.3,2623.2,0.00292737]
[1723914710819,6.3393,2623.3,2623.2,0.00292737]
[1723914712414,2.5273,2623.3,2623.2,0.00292737]
[1723914716319,2.5273,2623.3,2623.2,0.33648588]
[1723914718613,3.9566,2623.3,2623.2,0.00292737]
[1723914719421,7.7686,2623.3,2623.2,0.00292737]
[1723914720029,1.42942,2623.1,2622.7,3.2078]
[1723914720229,2.52754,2622.9,2622.7,4.63742]
[1723914720526,2.52754,2622.9,2622.8,0.33367272]
[1723914721027,1.42957,2622.8,2622.7,4.63742]
[1723914721225,1.42957,2622.8,2622.7,4.9751402]
[1723914721724,2.53179252,2622.9,2622.7,4.9751402]